bitfinex-derivatives/quotes_BTCF0:USTF0_20241130
["timestamp","ask_amount","ask_price","bid_price","bid_amount"]
[1732945815272,0.052529,96989.0,96987.0,0.009]
[1732945815477,0.001,96988.0,96987.0,0.018]
[1732945815978,0.051529,96989.0,96987.0,0.009]
[1732945816185,0.052529,96989.0,96987.0,0.018]
[1732945816679,0.001,96988.0,96987.0,0.018]
[1732945818872,0.052529,96989.0,96987.0,0.018]
[1732945819479,0.001,96988.0,96987.0,0.018]
[1732945821173,0.052529,96989.0,96987.0,0.018]
[1732945821776,0.001,96988.0,96987.0,0.018]
[1732945822484,0.052529,96989.0,96987.0,0.018]
[1732945822981,0.001,96988.0,96987.0,0.018]
[1732945823385,0.001,96988.0,96987.0,0.009]
[1732945823568,0.001,96988.0,96987.0,0.018]
[1732945824481,0.051529,96989.0,96987.0,0.009]
[1732945824782,0.052529,96989.0,96987.0,0.018]
[1732945825174,0.001,96988.0,96987.0,0.018]
[1732945825769,0.052529,96989.0,96987.0,0.018]
[1732945826284,0.052529,96989.0,96988.0,0.00322356]
[1732945827087,0.052529,96989.0,96988.0,0.00322357]
[1732945827473,0.051529,96989.0,96988.0,0.00322357]
[1732945827674,0.051529,96989.0,96988.0,0.01222357]
[1732945828079,0.051529,96989.0,96988.0,0.009]
[1732945828383,0.052529,96989.0,96988.0,0.018]
[1732945828985,0.052529,96989.0,96988.0,0.02122358]
[1732945829287,0.052529,96989.0,96988.0,0.02122356]
[1732945833187,0.052529,96989.0,96988.0,0.018]
[1732945833381,0.052529,96989.0,96988.0,0.02122351]
[1732945834490,0.001,96989.0,96988.0,0.02122351]
[1732945836581,0.001,96989.0,96988.0,0.018]
[1732945836980,0.001,96989.0,96988.0,0.02122348]
[1732945837193,0.001,96989.0,96988.0,0.018]
[1732945838190,0.001,96989.0,96988.0,0.0212235]
[1732945838887,0.001,96989.0,96988.0,0.018]
[1732945839188,0.001,96989.0,96988.0,0.02122351]
[1732945842486,0.001,96989.0,96988.0,0.07790996]
[1732945844379,0.001,96989.0,96988.0,0.07790939]
[1732945845391,0.0857,97000.0,96999.0,0.051523]
[1732945845582,0.0857,97000.0,96999.0,0.42070278]
[1732945845583,0.08638,97000.0,96999.0,0.42070278]
[1732945845779,0.0857,97000.0,96999.0,0.42714829]
[1732945846189,0.0857,97000.0,96999.0,0.42788691]
[1732945846389,0.0857,97000.0,96999.0,0.42714829]
[1732945846584,0.0857,97000.0,96999.0,0.43614829]
[1732945847191,0.051505,97033.0,97001.0,0.051522]
[1732945847390,0.05396069,97020.0,97016.0,0.44628653]
[1732945847599,0.05396069,97026.0,97016.0,0.44628653]
[1732945847892,0.10792138,97026.0,97017.0,0.01482189]
[1732945848189,0.3608,97022.0,97020.0,0.00073677]
[1732945848389,0.412311,97022.0,97021.0,0.01482189]
[1732945849393,0.573031,97022.0,97021.0,0.01482189]
[1732945849589,0.3608,97022.0,97021.0,0.01482189]
[1732945849801,0.3608,97022.0,97021.0,0.02382189]
[1732945850008,0.01250717,97029.0,97021.0,0.02382189]
[1732945850187,0.16072,97022.0,97021.0,0.009]
[1732945850384,0.01250717,97029.0,97021.0,0.02382305]
[1732945850586,0.16072,97024.0,97022.0,0.01482305]
[1732945850783,0.16072,97024.0,97023.0,0.01482305]
[1732945850984,0.16072,97024.0,97023.0,0.0148232]
[1732945851188,0.16072,97024.0,97023.0,0.0155595]
[1732945851393,0.16072,97024.0,97023.0,0.0148232]
[1732945852003,0.16072,97024.0,97023.0,0.0238232]
[1732945852896,0.16072,97024.0,97023.0,0.0328232]
[1732945853290,0.17072,97025.0,97023.0,0.0328232]
[1732945853509,0.17072,97025.0,97024.0,0.0148232]
[1732945854401,0.01,97025.0,97024.0,0.0148232]
[1732945854592,0.17072,97025.0,97024.0,0.0238232]
[1732945856006,0.17072,97025.0,97024.0,0.0328232]
[1732945856203,0.17072,97025.0,97024.0,0.02637833]
[1732945857995,0.01,97025.0,97024.0,0.02637833]
[1732945860803,0.01,97025.0,97024.0,0.02637799]
[1732945863699,0.17068,97025.0,97024.0,0.02637799]
[1732945864704,0.01,97025.0,97024.0,0.02637799]
[1732945864905,0.17068,97025.0,97024.0,0.02637799]
[1732945865905,0.01,97025.0,97024.0,0.02637799]
[1732945866109,0.17068,97025.0,97024.0,0.02637799]
[1732945866413,0.17068,97025.0,97024.0,0.03282252]
[1732945867904,0.17068,97025.0,97024.0,0.68282252]
[1732945869911,0.01,97025.0,97024.0,0.68282252]
[1732945870114,0.17068,97025.0,97024.0,0.68282252]
[1732945870714,0.17068,97025.0,97024.0,0.68282267]
[1732945872307,0.17068,97025.0,97024.0,0.68355851]
[1732945872512,0.17068,97025.0,97024.0,0.68282267]
[1732945873720,0.01,97025.0,97024.0,0.68282267]
[1732945874006,0.53148,97025.0,97024.0,0.68282313]
[1732945874222,0.582989,97025.0,97024.0,0.68282313]
[1732945877313,1.016109,97025.0,97024.0,0.67766754]
[1732945877517,1.016109,97025.0,97024.0,0.68282357]
[1732945878519,0.9646,97025.0,97024.0,0.68282357]
[1732945879113,0.9646,97025.0,97024.0,0.668]
[1732945879408,0.9646,97025.0,97024.0,0.6828232]
[1732945879903,0.44312,97025.0,97024.0,0.6828232]
[1732945880103,0.59856,97025.0,97024.0,0.67122244]
[1732945880308,0.59856,97025.0,97024.0,0.68282322]
[1732945880508,0.59856,97025.0,97024.0,0.668]
[1732945880821,0.44312,97025.0,97024.0,0.668]
[1732945881017,0.59856,97025.0,97024.0,0.668]
[1732945881316,0.59856,97025.0,97024.0,0.03282313]
[1732945881621,0.59856,97025.0,97024.0,0.03356111]
[1732945881821,0.44312,97025.0,97024.0,0.03282313]
[1732945882011,0.59856,97025.0,97024.0,0.03282299]
[1732945882514,0.44312,97025.0,97024.0,0.03282299]
[1732945882823,0.59856,97025.0,97024.0,0.02637821]
[1732945883009,0.59856,97025.0,97024.0,0.03282299]
[1732945883210,0.59856,97025.0,97024.0,0.03926777]
[1732945883423,0.59856,97025.0,97024.0,0.04000577]
[1732945884119,0.59856,97025.0,97024.0,0.03926777]
[1732945884909,0.59856,97025.0,97024.0,0.03282291]
[1732945885111,0.59856,97025.0,97024.0,0.03926763]
[1732945891726,0.59856,97025.0,97024.0,0.03282285]
[1732945893210,0.44312,97025.0,97024.0,0.03282285]
[1732945893416,0.59852,97025.0,97024.0,0.03282285]
[1732945893723,0.59852,97025.0,97024.0,0.03356088]
[1732945894818,0.59852,97025.0,97024.0,0.03282285]
[1732945895324,0.59852,97025.0,97024.0,0.03356088]
[1732945895624,0.59852,97025.0,97024.0,0.03282285]
[1732945895825,0.1654,97025.0,97024.0,0.39362285]
[1732945898125,0.1654,97025.0,97024.0,0.39436111]
[1732945898521,0.1654,97025.0,97024.0,0.39362285]
[1732945898716,0.01,97025.0,97024.0,0.39362285]
[1732945898921,0.1654,97025.0,97024.0,0.39362285]
[1732945900429,0.1654,97025.0,97024.0,1.04436111]
[1732945901322,0.1654,97025.0,97024.0,1.04362285]
[1732945902023,0.1654,97025.0,97024.0,0.68282285]
[1732945903629,0.1654,97025.0,97024.0,0.68282336]
[1732945905224,0.01,97025.0,97024.0,0.68282336]
[1732945905532,0.1654,97025.0,97024.0,0.68282336]
[1732945908634,0.1654,97025.0,97024.0,0.67637842]
[1732945910338,0.1961,97025.0,97024.0,0.67637842]
[1732945910533,0.1961,97025.0,97024.0,0.668]
[1732945910741,0.1961,97025.0,97024.0,0.67637864]
[1732945912034,0.19006,97025.0,97024.0,0.67637864]
[1732945914736,0.21068456,97025.0,97024.0,0.67637864]
[1732945915045,0.06132456,97025.0,97024.0,0.67637864]
[1732945915237,0.21068456,97025.0,97024.0,0.67637864]
[1732945916644,0.21068456,97025.0,97024.0,0.68282374]
[1732945917538,0.21068456,97025.0,97024.0,0.68282379]
[1732945920541,0.01,97025.0,97024.0,0.68282379]
[1732945920743,0.15936,97025.0,97024.0,0.68282379]
[1732945926741,0.15936,97025.0,97024.0,0.668]
[1732945926949,0.15936,97025.0,97024.0,0.6828232]
[1732945929749,0.01,97025.0,97024.0,0.6828232]
[1732945929947,0.15936,97025.0,97024.0,0.6828232]
[1732945934348,0.15936,97025.0,97024.0,0.41556514]
[1732945934349,0.210869,97025.0,97024.0,0.41556514]
[1732945934541,0.210869,97025.0,97024.0,0.40756514]
[1732945934943,0.210869,97025.0,97024.0,0.1022516]
[1732945940154,0.210869,97025.0,97009.0,0.00073872]
[1732945940155,0.051513,97019.0,97009.0,0.00073872]
[1732945940349,0.3923,97018.0,97010.0,0.01482444]
[1732945940550,0.3923,97018.0,97011.0,0.01482444]
[1732945940753,0.3923,97018.0,97012.0,0.01482444]
[1732945940948,0.3923,97018.0,97013.0,0.01482444]
[1732945941152,0.3923,97018.0,97014.0,0.01482444]
[1732945941352,0.3923,97018.0,97015.0,0.01482444]
[1732945941553,0.3923,97018.0,97016.0,0.01482444]
[1732945941855,0.3923,97018.0,97017.0,0.01482444]
[1732945942058,0.3933,97018.0,97017.0,0.01482444]
[1732945942664,0.50692,97018.0,97017.0,0.0032227]
[1732945942954,0.50692,97018.0,97017.0,0.07533843]
[1732945944056,0.50692,97018.0,97017.0,0.06889302]
[1732945944553,0.50592,97018.0,97017.0,0.06889302]
[1732945944758,0.50692,97018.0,97017.0,0.07789302]
[1732945945550,0.51909615,97018.0,97017.0,0.07789302]
[1732945946845,0.51909615,97018.0,97017.0,0.08433838]
[1732945948156,0.51909615,97018.0,97017.0,0.069514]
[1732945948356,0.51909615,97018.0,97017.0,0.07467029]
[1732945948661,0.51909615,97018.0,97017.0,0.08949462]
[1732945951862,0.37397615,97018.0,97017.0,0.07467029]
[1732945952063,0.51909615,97018.0,97017.0,0.09023218]
[1732945952257,0.51909615,97018.0,97017.0,0.08949426]
[1732945952866,0.37397615,97018.0,97017.0,0.08433797]
[1732945953055,0.51909615,97018.0,97017.0,0.08433797]
[1732945954968,0.51909615,97018.0,97017.0,0.08507595]
[1732945955663,0.14612,97018.0,97017.0,0.44513797]
[1732945955865,0.001,97018.0,97017.0,0.44513797]
[1732945956058,0.14612,97018.0,97017.0,0.44513797]
[1732945961264,0.14612,97018.0,97017.0,0.43998039]
[1732945961571,0.14612,97018.0,97017.0,0.4451358]
[1732945962569,0.001,97018.0,97017.0,0.4451358]
[1732945967675,0.001,97018.0,97017.0,0.44587311]
[1732945968377,0.001,97018.0,97017.0,0.4451358]
[1732945970183,0.001,97018.0,97017.0,0.44587312]
[1732945970372,0.001,97018.0,97017.0,0.4451358]
[1732945972582,0.001,97018.0,97017.0,0.430314]
[1732945972778,0.083713,97018.0,97017.0,0.44513628]
[1732945973782,0.083713,97018.0,97017.0,0.08433628]
[1732945975185,0.14136,97030.0,97024.0,0.05151]
[1732945975381,0.14136,97030.0,97024.0,0.06633228]
[1732945975574,0.051505,97033.0,97024.0,0.06633228]
[1732945975779,0.15136,97025.0,97024.0,0.06633228]
[1732945976482,0.15236,97025.0,97024.0,0.07433228]
[1732945976678,0.15236,97025.0,97024.0,0.08333228]
[1732945978792,0.15236,97025.0,97024.0,0.06851]
[1732945978987,0.15236,97025.0,97024.0,0.08333172]
[1732945979382,0.15236,97025.0,97024.0,0.08333175]
[1732945981791,0.15236,97025.0,97024.0,0.08406957]
[1732945982292,0.15236,97025.0,97024.0,0.08333179]
[1732945983583,0.15232,97025.0,97024.0,0.08333179]
[1732945985290,0.15232,97025.0,97024.0,0.08333194]
[1732945988794,0.15232,97025.0,97024.0,0.08333202]
[1732945988994,0.15232,97025.0,97024.0,0.07817654]
[1732945989195,0.15232,97025.0,97024.0,0.08333202]
[1732946001602,0.15232,97025.0,97024.0,0.08407014]
[1732946002401,0.15232,97025.0,97024.0,0.08333202]
[1732946003404,0.15232,97025.0,97024.0,0.07817654]
[1732946003796,0.15232,97025.0,97024.0,0.06851]
[1732946005104,0.14896,97025.0,97024.0,0.06851]
[1732946005300,0.14896,97025.0,97024.0,0.08333185]
[1732946005903,0.12576147,97025.0,97024.0,0.08333185]
[1732946006700,0.12576147,97025.0,97024.0,0.08333113]
[1732946008798,0.12576147,97025.0,97024.0,0.06851]
[1732946008998,0.12576147,97025.0,97024.0,0.08333127]
[1732946009403,0.01241938,97030.0,97029.0,0.051507]
[1732946009707,0.13796,97030.0,97029.0,0.06632827]
[1732946010600,0.13896,97030.0,97029.0,0.07332827]
[1732946010798,0.13896,97030.0,97029.0,0.08232827]
[1732946015808,0.13896,97030.0,97029.0,0.08232829]
[1732946019814,0.13896,97030.0,97029.0,0.03082129]
[1732946020916,0.001,97030.0,97029.0,0.03082129]
[1732946021112,0.13896,97030.0,97029.0,0.03082129]
[1732946022421,0.13896,97030.0,97029.0,0.016]
[1732946022722,0.13896,97030.0,97029.0,0.0308214]
[1732946028129,0.001,97030.0,97029.0,0.0308214]
[1732946028323,0.1031,97099.0,97033.0,0.051505]
[1732946028324,0.051498,97048.0,97033.0,0.051505]
[1732946028519,0.05357139,97043.0,97039.0,0.3608]
[1732946028834,0.0326,97044.0,97040.0,0.0148214]
[1732946029023,0.0326,97044.0,97041.0,0.0148214]
[1732946029224,0.0326,97044.0,97042.0,0.0148214]
[1732946029428,0.0326,97044.0,97043.0,0.0148214]
[1732946030129,0.0326,97044.0,97043.0,0.0155593]
[1732946030321,0.17704,97044.0,97043.0,0.0148214]
[1732946030730,0.17704,97044.0,97043.0,0.0155593]
[1732946030923,0.17704,97044.0,97043.0,0.0148214]
[1732946031321,0.17704,97044.0,97043.0,0.01555922]
[1732946031523,0.17704,97044.0,97043.0,0.02255922]
[1732946031726,0.17704,97044.0,97043.0,0.0218214]
[1732946031930,0.17704,97044.0,97043.0,0.0248214]
[1732946032922,0.17704,97044.0,97043.0,0.02482046]
[1732946033733,0.17704,97044.0,97043.0,0.0255582]
[1732946035238,0.17704,97044.0,97043.0,0.02482046]
[1732946039734,0.051503,97038.0,97017.0,0.3608]
[1732946039941,0.3608,97036.0,97022.0,0.051511]
[1732946040134,0.3608,97036.0,97017.0,0.3608]
[1732946040335,0.051505,97034.0,97017.0,0.3608]
[1732946040635,0.1444,97033.0,97017.0,0.412313]
[1732946040840,0.083206,97032.0,97017.0,0.412873]
[1732946041238,0.083206,97032.0,97027.0,0.3738]
[1732946042037,0.084206,97032.0,97027.0,0.3758]
[1732946042631,0.051506,97031.0,97027.0,0.3758]
[1732946043742,0.1444,97030.0,97027.0,0.3758]
[1732946044239,0.031,97029.0,97027.0,0.3758]
[1732946044946,0.031,97029.0,97027.0,0.3768]
[1732946045241,0.1444,97028.0,97027.0,0.3768]
[1732946047235,0.1444,97028.0,97027.0,0.3698]
[1732946047441,0.1454,97028.0,97027.0,0.3768]
[1732946047739,0.1454,97028.0,97027.0,0.38324462]
[1732946047942,0.1464,97028.0,97027.0,0.38324462]
[1732946048139,0.197908,97028.0,97027.0,0.38324462]
[1732946049640,0.64309875,97028.0,97027.0,0.38840032]
[1732946050539,0.64309875,97028.0,97027.0,0.02760032]
[1732946051733,0.64309875,97028.0,97027.0,0.02437821]
[1732946053547,0.64309875,97028.0,97027.0,0.02437833]
[1732946053548,0.44719075,97028.0,97027.0,0.02437833]
[1732946053736,0.59163075,97028.0,97027.0,0.03082299]
[1732946054137,0.59163075,97028.0,97027.0,0.06322299]
[1732946054650,0.57956,97028.0,97027.0,0.06322299]
[1732946055840,0.57956,97028.0,97027.0,0.06322242]
[1732946058049,0.57956,97028.0,97027.0,0.05677789]
[1732946058948,0.57956,97028.0,97027.0,0.06322242]
[1732946059153,0.57956,97028.0,97027.0,0.0484]
[1732946059351,0.57956,97028.0,97027.0,0.06322242]
[1732946062751,0.57956,97028.0,97027.0,0.06322239]
[1732946065961,0.58004,97028.0,97027.0,0.03082239]
[1732946067262,0.58004,97028.0,97027.0,0.016]
[1732946068450,0.58004,97028.0,97027.0,0.03082239]
[1732946069750,0.14692,97028.0,97027.0,0.03082239]
[1732946074156,0.14692,97028.0,97027.0,0.03155987]
[1732946076258,0.14692,97028.0,97027.0,0.03082239]
[1732946082259,0.14692,97028.0,97027.0,0.0315604]
[1732946083374,0.14692,97028.0,97027.0,0.03082239]
[1732946083563,0.002,97028.0,97027.0,0.03082239]
[1732946083765,0.14692,97028.0,97027.0,0.03082239]
[1732946089165,0.14692,97028.0,97027.0,0.0243779]
[1732946089363,0.14692,97028.0,97027.0,0.03082244]
[1732946094172,0.14444,97028.0,97027.0,0.03082244]
[1732946098867,0.14444,97028.0,97027.0,0.0243779]
[1732946099078,0.14444,97028.0,97027.0,0.03082244]
[1732946100977,0.002,97028.0,97027.0,0.03082244]
[1732946101279,0.14444,97028.0,97027.0,0.03082244]
[1732946105075,0.17454,97028.0,97027.0,0.03082244]
[1732946105475,0.226048,97028.0,97027.0,0.03082244]
[1732946105687,0.226048,97028.0,97027.0,0.016]
[1732946105877,0.226048,97028.0,97027.0,0.03082255]
[1732946109379,0.226048,97028.0,97027.0,0.03082269]
[1732946110176,0.226048,97028.0,97027.0,0.0315609]
[1732946110382,0.226048,97028.0,97027.0,0.03082269]
[1732946114490,0.195948,97028.0,97027.0,0.03082269]
[1732946115979,0.002,97028.0,97027.0,0.03082269]
[1732946116194,0.14444,97028.0,97027.0,0.03082269]
[1732946116385,0.002,97028.0,97027.0,0.03082269]
[1732946116593,0.14444,97028.0,97027.0,0.03082269]
[1732946120787,0.14444,97028.0,97027.0,0.03156056]
[1732946121194,0.14124,97028.0,97027.0,0.03156056]
[1732946121392,0.14124,97028.0,97027.0,0.03082269]
[1732946122092,0.002,97028.0,97027.0,0.03082269]
[1732946122292,0.14124,97028.0,97027.0,0.06352269]
[1732946122491,0.002,97028.0,97027.0,0.06352269]
[1732946122798,0.14124,97028.0,97027.0,0.06426056]
[1732946123989,0.002,97028.0,97027.0,0.06352269]
[1732946124189,0.14124,97028.0,97027.0,0.06352269]
[1732946124992,0.002,97028.0,97027.0,0.06352269]
[1732946125191,0.14124,97028.0,97027.0,0.06352269]
[1732946126600,0.14124,97028.0,97027.0,0.06352075]
[1732946126999,0.14124,97028.0,97027.0,0.42432075]
[1732946127398,0.002,97028.0,97027.0,0.42432075]
[1732946127604,0.02062112,97041.0,97040.0,0.051501]
[1732946127795,0.15986112,97041.0,97040.0,0.06632175]
[1732946128805,0.15986112,97041.0,97040.0,0.06932175]
[1732946129011,0.16086112,97041.0,97040.0,0.07732175]
[1732946129197,0.001,97041.0,97040.0,0.07732175]
[1732946129397,0.1402,97041.0,97040.0,0.07732175]
[1732946129802,0.1402,97041.0,97040.0,0.07805849]
[1732946130009,0.1402,97041.0,97040.0,0.07805784]
[1732946130198,0.1402,97041.0,97040.0,0.011]
[1732946130501,0.1402,97041.0,97040.0,0.02655674]
[1732946131302,0.1402,97041.0,97040.0,0.0258201]
[1732946131511,0.1402,97041.0,97040.0,0.0773211]
[1732946132112,0.1402,97041.0,97040.0,0.0258201]
[1732946132407,0.1402,97041.0,97040.0,0.02655674]
[1732946133597,0.1402,97041.0,97040.0,0.0258201]
[1732946133794,0.1402,97041.0,97040.0,0.02655674]
[1732946135807,0.1402,97041.0,97040.0,0.0258201]
[1732946136194,0.1402,97041.0,97040.0,0.02655639]
[1732946136399,0.1402,97041.0,97040.0,0.0258201]
[1732946137805,0.001,97041.0,97040.0,0.0258201]
[1732946138012,0.1402,97041.0,97040.0,0.0258201]
[1732946138307,0.001,97041.0,97040.0,0.0258201]
[1732946138510,0.1402,97041.0,97040.0,0.02655635]
[1732946139810,0.1402,97041.0,97040.0,0.0258201]
[1732946140514,0.1402,97041.0,97040.0,0.02582009]
[1732946147214,0.1402,97041.0,97040.0,0.07732109]
[1732946148707,0.001,97041.0,97040.0,0.07732109]
[1732946149016,0.1402,97041.0,97040.0,0.07732109]
[1732946154923,0.001,97041.0,97040.0,0.07732109]
[1732946155229,0.1386,97041.0,97040.0,0.07732109]
[1732946157923,0.1386,97041.0,97040.0,0.07805897]
[1732946158124,0.1386,97041.0,97040.0,0.07732109]
[1732946158516,0.1386,97041.0,97040.0,0.02582009]
[1732946159117,0.1696,97041.0,97040.0,0.02582009]
[1732946159617,0.1696,97041.0,97040.0,0.011]
[1732946159826,0.1696,97041.0,97040.0,0.02582011]
[1732946160927,0.1696,97041.0,97040.0,0.02582014]
[1732946161825,0.032,97041.0,97040.0,0.02582014]
[1732946162016,0.1696,97041.0,97040.0,0.02582014]
[1732946162716,0.1696,97041.0,97040.0,0.07732114]
[1732946167122,0.1386,97041.0,97040.0,0.07732114]
[1732946172533,0.001,97041.0,97040.0,0.07732114]
[1732946172833,0.1386,97041.0,97040.0,0.07732114]
[1732946175925,0.001,97041.0,97040.0,0.07732114]
[1732946176139,0.1386,97041.0,97040.0,0.07732114]
[1732946177734,0.1386,97041.0,97040.0,0.0676558]
[1732946177942,0.1386,97041.0,97040.0,0.07732105]
[1732946179035,0.11540338,97041.0,97040.0,0.07732105]
[1732946179843,0.02061855,97044.0,97043.0,0.0515]
[1732946180139,0.15821855,97044.0,97043.0,0.06632005]
[1732946181138,0.15893855,97044.0,97043.0,0.06632005]
[1732946181733,0.15993855,97044.0,97043.0,0.07532005]
[1732946182241,0.02161855,97044.0,97043.0,0.07532005]
[1732946182835,0.15993855,97044.0,97043.0,0.07532005]
[1732946185035,0.1722479,97044.0,97043.0,0.07532005]
[1732946186533,0.0339279,97044.0,97043.0,0.07532005]
[1732946186740,0.1722479,97044.0,97043.0,0.07532005]
[1732946188341,0.1722479,97044.0,97043.0,0.06887655]
[1732946188544,0.1722479,97044.0,97043.0,0.0605]
[1732946189640,0.1722479,97044.0,97043.0,0.07532005]
[1732946191335,0.1722479,97044.0,97043.0,0.0605]
[1732946191543,0.0339279,97044.0,97043.0,0.07532005]
[1732946191731,0.1722479,97044.0,97043.0,0.07532005]
[1732946191934,0.1722479,97044.0,97043.0,0.0605]
[1732946192139,0.1722479,97044.0,97043.0,0.07532005]
[1732946194041,0.43388,97051.0,97049.0,0.051496]
[1732946194246,0.01213954,97051.0,97050.0,0.01482005]
[1732946194444,0.00154569,97070.0,97051.0,0.051496]
[1732946194445,0.16912,97052.0,97051.0,0.051496]
[1732946194641,0.16912,97052.0,97051.0,0.06631605]
[1732946195151,0.18161871,97052.0,97051.0,0.06631605]
[1732946195648,0.15081871,97052.0,97051.0,0.06631605]
[1732946195947,0.15081871,97052.0,97051.0,0.06931605]
[1732946196543,0.01249871,97052.0,97051.0,0.06931605]
[1732946196741,0.10714278,97061.0,97055.0,0.051494]
[1732946196943,0.17012,97056.0,97055.0,0.06631405]
[1732946197634,0.18211989,97056.0,97055.0,0.06631405]
[1732946198440,0.15031989,97056.0,97055.0,0.06631405]
[1732946198650,0.15031989,97056.0,97055.0,0.06805075]
[1732946198844,0.0322,97064.0,97055.0,0.06731405]
[1732946199049,0.02061584,97061.0,97060.0,0.051491]
[1732946199347,0.02061584,97061.0,97060.0,0.42711105]
[1732946199546,0.0122051,97064.0,97060.0,0.37562005]
[1732946199748,0.13832,97073.0,97061.0,0.01482005]
[1732946200051,0.13832,97073.0,97060.0,0.3608]
[1732946200052,0.05511708,97070.0,97069.0,0.412286]
[1732946200237,0.05511708,97070.0,97069.0,0.37562005]
[1732946200238,0.13832,97070.0,97069.0,0.37562005]
[1732946200439,0.13832,97078.0,97076.0,0.051482]
[1732946200741,0.04477228,97082.0,97077.0,0.01482005]
[1732946200945,0.13832,97081.0,97080.0,0.00073564]
[1732946201250,0.13832,97081.0,97080.0,0.01482005]
[1732946201453,0.01227228,97082.0,97080.0,0.06630005]
[1732946201751,0.13832,97081.0,97080.0,0.05148]
[1732946201941,0.001,97082.0,97080.0,0.06629366]
[1732946202139,0.13932,97081.0,97080.0,0.05148]
[1732946202337,0.13932,97081.0,97080.0,0.05792058]
[1732946202537,0.13932,97081.0,97080.0,0.01481334]
[1732946203442,0.001,97081.0,97080.0,0.01481334]
[1732946203645,0.13932,97081.0,97080.0,0.01481334]
[1732946204250,0.13832,97081.0,97080.0,0.01481334]
[1732946204449,0.13932,97081.0,97080.0,0.01481334]
[1732946204949,0.13928,97081.0,97080.0,0.01481334]
[1732946205451,0.001,97081.0,97080.0,0.01481334]
[1732946205653,0.13928,97081.0,97080.0,0.01481334]
[1732946205849,0.13828,97081.0,97080.0,0.01481334]
[1732946206051,0.13828,97081.0,97080.0,0.01781334]
[1732946207157,0.051479,97083.0,97080.0,0.01781334]
[1732946207456,0.051479,97083.0,97081.0,0.01481334]
[1732946207457,0.13828,97082.0,97081.0,0.01481334]
[1732946209149,0.13828,97082.0,97081.0,0.01781334]
[1732946209450,0.13828,97082.0,97081.0,0.02481334]
[1732946209652,0.13828,97082.0,97081.0,0.0183733]
[1732946209853,0.051479,97083.0,97081.0,0.0183733]
[1732946210047,0.13828,97082.0,97081.0,0.01]
[1732946210249,0.13828,97082.0,97081.0,0.02481431]
[1732946210660,0.051479,97083.0,97081.0,0.02481431]
[1732946210952,0.05148,97081.0,97077.0,0.3608]
[1732946211157,0.02061584,97089.0,97081.0,0.003]
[1732946211358,0.1432,97088.0,97082.0,0.01481431]
[1732946211656,0.1432,97088.0,97083.0,0.01481431]
[1732946211957,0.051478,97085.0,97084.0,0.01481431]
[1732946212561,0.412278,97085.0,97084.0,0.0083733]
[1732946212856,0.412278,97085.0,97056.0,0.0302]
[1732946213048,0.412278,97085.0,97050.0,7.742e-05]
[1732946213049,0.051493,97056.0,97053.0,0.3608]
[1732946213248,0.1432,97055.0,97054.0,0.00644175]
[1732946214650,0.1442,97055.0,97054.0,0.01544175]
[1732946215160,0.1442,97055.0,97054.0,0.02444175]
[1732946216250,0.1442,97055.0,97054.0,0.018]
[1732946216458,0.1442,97055.0,97054.0,0.02444229]
[1732946217851,0.001,97055.0,97054.0,0.02444229]
[1732946219860,0.001,97055.0,97054.0,0.02444219]
[1732946220050,0.1432,97066.0,97054.0,0.02444219]
[1732946220252,0.00154566,97075.0,97065.0,0.3608]
[1732946220452,0.12575139,97090.0,97074.0,0.3608]
[1732946220656,0.12575139,97090.0,97082.0,0.00073264]
[1732946220657,0.051477,97086.0,97082.0,0.00073264]
[1732946220860,0.07218,97090.0,97085.0,0.3608]
[1732946221060,0.07218,97090.0,97086.0,0.00644219]
[1732946221260,0.07218,97090.0,97087.0,0.00644219]
[1732946221456,0.07218,97090.0,97088.0,0.00644219]
[1732946221760,0.07218,97090.0,97089.0,0.00644219]
[1732946222265,0.07218,97090.0,97089.0,0.05791719]
[1732946222965,0.07218,97090.0,97089.0,0.06306947]
[1732946223163,0.07218,97090.0,97089.0,0.09476947]
[1732946223364,0.1432,97096.0,97089.0,0.04329447]
[1732946223552,0.1432,97096.0,97095.0,0.412272]
[1732946223858,0.1432,97096.0,97095.0,0.42386647]
[1732946224656,0.1442,97096.0,97095.0,0.42386647]
[1732946224958,0.1442,97096.0,97095.0,0.42708621]
[1732946225465,0.1442,97096.0,97095.0,0.43608621]
[1732946225466,0.002,97096.0,97095.0,0.43608621]
[1732946226155,0.001,97096.0,97095.0,0.44008621]
[1732946226761,0.1442,97096.0,97095.0,0.44008621]
[1732946228164,0.001,97096.0,97095.0,0.44008621]
[1732946228467,0.1442,97096.0,97095.0,0.44008621]
[1732946229059,0.1442,97096.0,97095.0,0.425272]
[1732946229265,0.1442,97096.0,97095.0,0.44008305]
[1732946229770,0.001,97096.0,97095.0,0.44008305]
[1732946233667,0.051471,97099.0,97098.0,0.051471]
[1732946233857,0.24316,97100.0,97098.0,0.06628205]
[1732946234061,0.24316,97100.0,97099.0,0.01481105]
[1732946234366,0.1,97100.0,97099.0,0.01481105]
[1732946235565,0.1,97100.0,97099.0,0.02181105]
[1732946236277,0.1,97100.0,97099.0,0.02181091]
[1732946236683,0.1,97100.0,97099.0,0.02481091]
[1732946242895,0.1,97100.0,97099.0,0.01]
[1732946243095,0.1,97100.0,97099.0,0.02481067]
[1732946246483,0.1,97100.0,97099.0,0.02481058]
[1732946249087,0.0331,97110.0,97107.0,0.051466]
[1732946249088,0.14336,97108.0,97107.0,0.051466]
[1732946249291,0.0331,97110.0,97107.0,0.37561058]
[1732946249500,0.0331,97110.0,97108.0,0.01481058]
[1732946249991,0.14336,97115.0,97114.0,0.051462]
[1732946250290,0.05146,97119.0,97107.0,0.54531192]
[1732946250492,0.0306,97123.0,97122.0,0.051458]
[1732946250799,0.17396,97123.0,97122.0,0.051458]
[1732946252090,0.17396,97123.0,97122.0,0.058458]
[1732946252396,0.17396,97123.0,97122.0,0.0732665]
[1732946252796,0.0306,97123.0,97122.0,0.0218085]
[1732946252996,0.17396,97123.0,97122.0,0.0248085]
[1732946254084,0.18604197,97123.0,97122.0,0.0248085]
[1732946255700,0.18604197,97123.0,97122.0,0.02480793]